Workbook

Sheet Data
B2: Table1 | I2: No dates
B3: DDate | C3: Dev | D3: Succ | E3: DevA | F3: SuccA
B4: 2004-06-01 | C4: 40 | D4: 111 | E4: =AVERAGEIFS([Dev],[DDate],[DDate]) -> 42.908 | F4: =AVERAGEIFS([Succ],[DDate],[DDate]) -> 111.152
B5: 2004-06-01 | C5: 41.81 | D5: 106.26 | E5: =AVERAGEIFS([Dev],[DDate],[DDate]) -> 42.908 | F5: =AVERAGEIFS([Succ],[DDate],[DDate]) -> 111.152
B6: 2004-06-01 | C6: 44.32 | D6: 109.89 | E6: =AVERAGEIFS([Dev],[DDate],[DDate]) -> 42.908 | F6: =AVERAGEIFS([Succ],[DDate],[DDate]) -> 111.152
B7: 2004-06-01 | C7: 45.83 | D7: 113.26 | E7: =AVERAGEIFS([Dev],[DDate],[DDate]) -> 42.908 | F7: =AVERAGEIFS([Succ],[DDate],[DDate]) -> 111.152
B8: 2004-06-01 | C8: 42.58 | D8: 115.35 | E8: =AVERAGEIFS([Dev],[DDate],[DDate]) -> 42.908 | F8: =AVERAGEIFS([Succ],[DDate],[DDate]) -> 111.152
B9: 2004-06-15 | C9: 47.51 | D9: 116.27 | E9: =AVERAGEIFS([Dev],[DDate],[DDate]) -> 47.93 | F9: =AVERAGEIFS([Succ],[DDate],[DDate]) -> 117.045
B10: 2004-06-15 | C10: 48.35 | D10: 117.82 | E10: =AVERAGEIFS([Dev],[DDate],[DDate]) -> 47.93 | F10: =AVERAGEIFS([Succ],[DDate],[DDate]) -> 117.045
B11: 2004-07-01 | C11: 45.51 | D11: 119.01 | E11: =AVERAGEIFS([Dev],[DDate],[DDate]) -> 45.205 | F11: =AVERAGEIFS([Succ],[DDate],[DDate]) -> 119.66
B12: 2004-07-01 | C12: 44.9 | D12: 120.31 | E12: =AVERAGEIFS([Dev],[DDate],[DDate]) -> 45.205 | F12: =AVERAGEIFS([Succ],[DDate],[DDate]) -> 119.66
B13: 2004-07-15 | C13: 48.97 | D13: 116.98 | E13: =AVERAGEIFS([Dev],[DDate],[DDate]) -> 51.58 | F13: =AVERAGEIFS([Succ],[DDate],[DDate]) -> 116.82
B14: 2004-07-15 | C14: 52.97 | D14: 118.42 | E14: =AVERAGEIFS([Dev],[DDate],[DDate]) -> 51.58 | F14: =AVERAGEIFS([Succ],[DDate],[DDate]) -> 116.82
B15: 2004-07-15 | C15: 52.8 | D15: 115.06 | E15: =AVERAGEIFS([Dev],[DDate],[DDate]) -> 51.58 | F15: =AVERAGEIFS([Succ],[DDate],[DDate]) -> 116.82
B16: 2004-08-01 | C16: 51.7 | D16: 111.43 | E16: =AVERAGEIFS([Dev],[DDate],[DDate]) -> 53.84666667 | F16: =AVERAGEIFS([Succ],[DDate],[DDate]) -> 110.8066667
B17: 2004-08-01 | C17: 54.3 | D17: 112.72 | E17: =AVERAGEIFS([Dev],[DDate],[DDate]) -> 53.84666667 | F17: =AVERAGEIFS([Succ],[DDate],[DDate]) -> 110.8066667
B18: 2004-08-01 | C18: 55.54 | D18: 108.27 | E18: =AVERAGEIFS([Dev],[DDate],[DDate]) -> 53.84666667 | F18: =AVERAGEIFS([Succ],[DDate],[DDate]) -> 110.8066667
B19: 2004-08-15 | C19: 49.79 | D19: 108.23 | E19: =AVERAGEIFS([Dev],[DDate],[DDate]) -> 49.79 | F19: =AVERAGEIFS([Succ],[DDate],[DDate]) -> 108.23
B20: 2004-09-01 | C20: 52.03 | D20: 112.85 | E20: =AVERAGEIFS([Dev],[DDate],[DDate]) -> 50.33 | F20: =AVERAGEIFS([Succ],[DDate],[DDate]) -> 112.835
B21: 2004-09-01 | C21: 50.61 | D21: 112.17 | E21: =AVERAGEIFS([Dev],[DDate],[DDate]) -> 50.33 | F21: =AVERAGEIFS([Succ],[DDate],[DDate]) -> 112.835
B22: 2004-09-01 | C22: 47.59 | D22: 115.34 | E22: =AVERAGEIFS([Dev],[DDate],[DDate]) -> 50.33 | F22: =AVERAGEIFS([Succ],[DDate],[DDate]) -> 112.835
B23: 2004-09-01 | C23: 51.09 | D23: 110.98 | E23: =AVERAGEIFS([Dev],[DDate],[DDate]) -> 50.33 | F23: =AVERAGEIFS([Succ],[DDate],[DDate]) -> 112.835
B24: 2004-09-15 | C24: 51.59 | D24: 111.89 | E24: =AVERAGEIFS([Dev],[DDate],[DDate]) -> 52.55 | F24: =AVERAGEIFS([Succ],[DDate],[DDate]) -> 111.675
B25: 2004-09-15 | C25: 53.51 | D25: 111.46 | E25: =AVERAGEIFS([Dev],[DDate],[DDate]) -> 52.55 | F25: =AVERAGEIFS([Succ],[DDate],[DDate]) -> 111.675
B26: 2004-10-01 | C26: 54 | D26: 115.58 | E26: =AVERAGEIFS([Dev],[DDate],[DDate]) -> 54 | F26: =AVERAGEIFS([Succ],[DDate],[DDate]) -> 115.58
B27: 2004-10-15 | C27: 56.62 | D27: 116.05 | E27: =AVERAGEIFS([Dev],[DDate],[DDate]) -> 55.7025 | F27: =AVERAGEIFS([Succ],[DDate],[DDate]) -> 113.1825
B28: 2004-10-15 | C28: 54.07 | D28: 112.42 | E28: =AVERAGEIFS([Dev],[DDate],[DDate]) -> 55.7025 | F28: =AVERAGEIFS([Succ],[DDate],[DDate]) -> 113.1825 | I28: With dates, w/ and w/o daily averaging
B29: 2004-10-15 | C29: 57.66 | D29: 110.56 | E29: =AVERAGEIFS([Dev],[DDate],[DDate]) -> 55.7025 | F29: =AVERAGEIFS([Succ],[DDate],[DDate]) -> 113.1825
B30: 2004-10-15 | C30: 54.46 | D30: 113.7 | E30: =AVERAGEIFS([Dev],[DDate],[DDate]) -> 55.7025 | F30: =AVERAGEIFS([Succ],[DDate],[DDate]) -> 113.1825
B31: 2004-11-01 | C31: 49.64 | D31: 113.05 | E31: =AVERAGEIFS([Dev],[DDate],[DDate]) -> 49.64 | F31: =AVERAGEIFS([Succ],[DDate],[DDate]) -> 113.05
B32: 2004-11-15 | C32: 46.96 | D32: 110.99 | E32: =AVERAGEIFS([Dev],[DDate],[DDate]) -> 46.00333333 | F32: =AVERAGEIFS([Succ],[DDate],[DDate]) -> 114.17
B33: 2004-11-15 | C33: 43.73 | D33: 115.53 | E33: =AVERAGEIFS([Dev],[DDate],[DDate]) -> 46.00333333 | F33: =AVERAGEIFS([Succ],[DDate],[DDate]) -> 114.17
B34: 2004-11-15 | C34: 47.32 | D34: 115.99 | E34: =AVERAGEIFS([Dev],[DDate],[DDate]) -> 46.00333333 | F34: =AVERAGEIFS([Succ],[DDate],[DDate]) -> 114.17
B35: 2004-12-01 | C35: 48.55 | D35: 117.67 | E35: =AVERAGEIFS([Dev],[DDate],[DDate]) -> 50.05666667 | F35: =AVERAGEIFS([Succ],[DDate],[DDate]) -> 121.29
B36: 2004-12-01 | C36: 52.26 | D36: 122.16 | E36: =AVERAGEIFS([Dev],[DDate],[DDate]) -> 50.05666667 | F36: =AVERAGEIFS([Succ],[DDate],[DDate]) -> 121.29
B37: 2004-12-01 | C37: 49.36 | D37: 124.04 | E37: =AVERAGEIFS([Dev],[DDate],[DDate]) -> 50.05666667 | F37: =AVERAGEIFS([Succ],[DDate],[DDate]) -> 121.29
B38: 2004-12-15 | C38: 46.35 | D38: 123.63 | E38: =AVERAGEIFS([Dev],[DDate],[DDate]) -> 43.67666667 | F38: =AVERAGEIFS([Succ],[DDate],[DDate]) -> 124.4166667
B39: 2004-12-15 | C39: 43.4 | D39: 126.44 | E39: =AVERAGEIFS([Dev],[DDate],[DDate]) -> 43.67666667 | F39: =AVERAGEIFS([Succ],[DDate],[DDate]) -> 124.4166667
B40: 2004-12-15 | C40: 41.28 | D40: 123.18 | E40: =AVERAGEIFS([Dev],[DDate],[DDate]) -> 43.67666667 | F40: =AVERAGEIFS([Succ],[DDate],[DDate]) -> 124.4166667
B41: 2005-01-01 | C41: 36.63 | D41: 127.78 | E41: =AVERAGEIFS([Dev],[DDate],[DDate]) -> 33.89666667 | F41: =AVERAGEIFS([Succ],[DDate],[DDate]) -> 126.1266667
B42: 2005-01-01 | C42: 33 | D42: 125.75 | E42: =AVERAGEIFS([Dev],[DDate],[DDate]) -> 33.89666667 | F42: =AVERAGEIFS([Succ],[DDate],[DDate]) -> 126.1266667
B43: 2005-01-01 | C43: 32.06 | D43: 124.85 | E43: =AVERAGEIFS([Dev],[DDate],[DDate]) -> 33.89666667 | F43: =AVERAGEIFS([Succ],[DDate],[DDate]) -> 126.1266667
B44: 2005-01-15 | C44: 35.82 | D44: 122.75 | E44: =AVERAGEIFS([Dev],[DDate],[DDate]) -> 33.82666667 | F44: =AVERAGEIFS([Succ],[DDate],[DDate]) -> 125.3466667
B45: 2005-01-15 | C45: 33.98 | D45: 122.27 | E45: =AVERAGEIFS([Dev],[DDate],[DDate]) -> 33.82666667 | F45: =AVERAGEIFS([Succ],[DDate],[DDate]) -> 125.3466667
B46: 2005-01-15 | C46: 29.4 | D46: 124.34 | E46: =AVERAGEIFS([Dev],[DDate],[DDate]) -> 33.82666667 | F46: =AVERAGEIFS([Succ],[DDate],[DDate]) -> 125.3466667
B47: 2005-01-15 | C47: 34.22 | D47: 126.88 | E47: =AVERAGEIFS([Dev],[DDate],[DDate]) -> 33.82666667 | F47: =AVERAGEIFS([Succ],[DDate],[DDate]) -> 125.3466667
B48: 2005-01-15 | C48: 33.39 | D48: 127.87 | E48: =AVERAGEIFS([Dev],[DDate],[DDate]) -> 33.82666667 | F48: =AVERAGEIFS([Succ],[DDate],[DDate]) -> 125.3466667
B49: 2005-01-15 | C49: 36.15 | D49: 127.97 | E49: =AVERAGEIFS([Dev],[DDate],[DDate]) -> 33.82666667 | F49: =AVERAGEIFS([Succ],[DDate],[DDate]) -> 125.3466667
B50: 2005-02-01 | C50: 38.43 | D50: 127.86 | E50: =AVERAGEIFS([Dev],[DDate],[DDate]) -> 38.43 | F50: =AVERAGEIFS([Succ],[DDate],[DDate]) -> 127.86
B51: 2005-02-15 | C51: 43.28 | D51: 128.15 | E51: =AVERAGEIFS([Dev],[DDate],[DDate]) -> 43.28 | F51: =AVERAGEIFS([Succ],[DDate],[DDate]) -> 128.15
B52: 2005-03-01 | C52: 39.78 | D52: 123.57 | E52: =AVERAGEIFS([Dev],[DDate],[DDate]) -> 40.36 | F52: =AVERAGEIFS([Succ],[DDate],[DDate]) -> 123.8966667
B53: 2005-03-01 | C53: 38.78 | D53: 125.82 | E53: =AVERAGEIFS([Dev],[DDate],[DDate]) -> 40.36 | F53: =AVERAGEIFS([Succ],[DDate],[DDate]) -> 123.8966667
B54: 2005-03-01 | C54: 42.52 | D54: 122.3 | E54: =AVERAGEIFS([Dev],[DDate],[DDate]) -> 40.36 | F54: =AVERAGEIFS([Succ],[DDate],[DDate]) -> 123.8966667
B55: 2005-03-15 | C55: 40.36 | D55: 124.38 | E55: =AVERAGEIFS([Dev],[DDate],[DDate]) -> 40.41666667 | F55: =AVERAGEIFS([Succ],[DDate],[DDate]) -> 123.3616667 | I55: With dates, daily averaging, step style
B56: 2005-03-15 | C56: 39.96 | D56: 120.9 | E56: =AVERAGEIFS([Dev],[DDate],[DDate]) -> 40.41666667 | F56: =AVERAGEIFS([Succ],[DDate],[DDate]) -> 123.3616667
B57: 2005-03-15 | C57: 43.54 | D57: 125.45 | E57: =AVERAGEIFS([Dev],[DDate],[DDate]) -> 40.41666667 | F57: =AVERAGEIFS([Succ],[DDate],[DDate]) -> 123.3616667
B58: 2005-03-15 | C58: 40.3 | D58: 121.64 | E58: =AVERAGEIFS([Dev],[DDate],[DDate]) -> 40.41666667 | F58: =AVERAGEIFS([Succ],[DDate],[DDate]) -> 123.3616667
B59: 2005-03-15 | C59: 39.51 | D59: 122.31 | E59: =AVERAGEIFS([Dev],[DDate],[DDate]) -> 40.41666667 | F59: =AVERAGEIFS([Succ],[DDate],[DDate]) -> 123.3616667
B60: 2005-03-15 | C60: 38.83 | D60: 125.49 | E60: =AVERAGEIFS([Dev],[DDate],[DDate]) -> 40.41666667 | F60: =AVERAGEIFS([Succ],[DDate],[DDate]) -> 123.3616667
B61: 2005-04-01 | C61: 36.1 | D61: 124.16 | E61: =AVERAGEIFS([Dev],[DDate],[DDate]) -> 33.59666667 | F61: =AVERAGEIFS([Succ],[DDate],[DDate]) -> 124.5433333
B62: 2005-04-01 | C62: 34.33 | D62: 126.56 | E62: =AVERAGEIFS([Dev],[DDate],[DDate]) -> 33.59666667 | F62: =AVERAGEIFS([Succ],[DDate],[DDate]) -> 124.5433333
B63: 2005-04-01 | C63: 30.36 | D63: 122.91 | E63: =AVERAGEIFS([Dev],[DDate],[DDate]) -> 33.59666667 | F63: =AVERAGEIFS([Succ],[DDate],[DDate]) -> 124.5433333
B64: 2005-04-15 | C64: 34.68 | D64: 126.27 | E64: =AVERAGEIFS([Dev],[DDate],[DDate]) -> 32.72666667 | F64: =AVERAGEIFS([Succ],[DDate],[DDate]) -> 124.42
B65: 2005-04-15 | C65: 30.46 | D65: 121.73 | E65: =AVERAGEIFS([Dev],[DDate],[DDate]) -> 32.72666667 | F65: =AVERAGEIFS([Succ],[DDate],[DDate]) -> 124.42
B66: 2005-04-15 | C66: 33.04 | D66: 125.26 | E66: =AVERAGEIFS([Dev],[DDate],[DDate]) -> 32.72666667 | F66: =AVERAGEIFS([Succ],[DDate],[DDate]) -> 124.42
B67: 2005-05-01 | C67: 31.76 | D67: 125.2 | E67: =AVERAGEIFS([Dev],[DDate],[DDate]) -> 31.94 | F67: =AVERAGEIFS([Succ],[DDate],[DDate]) -> 124.015
B68: 2005-05-01 | C68: 32.12 | D68: 122.83 | E68: =AVERAGEIFS([Dev],[DDate],[DDate]) -> 31.94 | F68: =AVERAGEIFS([Succ],[DDate],[DDate]) -> 124.015
B69: 2005-05-15 | C69: 34.33 | D69: 121.11 | E69: =AVERAGEIFS([Dev],[DDate],[DDate]) -> 35.56 | F69: =AVERAGEIFS([Succ],[DDate],[DDate]) -> 121.6
B70: 2005-05-15 | C70: 36.79 | D70: 122.09 | E70: =AVERAGEIFS([Dev],[DDate],[DDate]) -> 35.56 | F70: =AVERAGEIFS([Succ],[DDate],[DDate]) -> 121.6
B71: 2005-06-01 | C71: 33.37 | D71: 122.28 | E71: =AVERAGEIFS([Dev],[DDate],[DDate]) -> 34.24 | F71: =AVERAGEIFS([Succ],[DDate],[DDate]) -> 124.1766667
B72: 2005-06-01 | C72: 36.72 | D72: 124.63 | E72: =AVERAGEIFS([Dev],[DDate],[DDate]) -> 34.24 | F72: =AVERAGEIFS([Succ],[DDate],[DDate]) -> 124.1766667
B73: 2005-06-01 | C73: 32.63 | D73: 125.62 | E73: =AVERAGEIFS([Dev],[DDate],[DDate]) -> 34.24 | F73: =AVERAGEIFS([Succ],[DDate],[DDate]) -> 124.1766667
B74: 2005-06-15 | C74: 31.39 | D74: 127.47 | E74: =AVERAGEIFS([Dev],[DDate],[DDate]) -> 30 | F74: =AVERAGEIFS([Succ],[DDate],[DDate]) -> 125.995
B75: 2005-06-15 | C75: 28.61 | D75: 124.52 | E75: =AVERAGEIFS([Dev],[DDate],[DDate]) -> 30 | F75: =AVERAGEIFS([Succ],[DDate],[DDate]) -> 125.995
B76: 2005-07-01 | C76: 27.36 | D76: 123.07 | E76: =AVERAGEIFS([Dev],[DDate],[DDate]) -> 21.43714286 | F76: =AVERAGEIFS([Succ],[DDate],[DDate]) -> 116.8628571
B77: 2005-07-01 | C77: 22.43 | D77: 119.32 | E77: =AVERAGEIFS([Dev],[DDate],[DDate]) -> 21.43714286 | F77: =AVERAGEIFS([Succ],[DDate],[DDate]) -> 116.8628571
B78: 2005-07-01 | C78: 18.4 | D78: 118.2 | E78: =AVERAGEIFS([Dev],[DDate],[DDate]) -> 21.43714286 | F78: =AVERAGEIFS([Succ],[DDate],[DDate]) -> 116.8628571
B79: 2005-07-01 | C79: 21.09 | D79: 116.01 | E79: =AVERAGEIFS([Dev],[DDate],[DDate]) -> 21.43714286 | F79: =AVERAGEIFS([Succ],[DDate],[DDate]) -> 116.8628571
B80: 2005-07-01 | C80: 22.9 | D80: 116.25 | E80: =AVERAGEIFS([Dev],[DDate],[DDate]) -> 21.43714286 | F80: =AVERAGEIFS([Succ],[DDate],[DDate]) -> 116.8628571
B81: 2005-07-01 | C81: 19.63 | D81: 114.06 | E81: =AVERAGEIFS([Dev],[DDate],[DDate]) -> 21.43714286 | F81: =AVERAGEIFS([Succ],[DDate],[DDate]) -> 116.8628571
B82: 2005-07-01 | C82: 18.25 | D82: 111.13 | E82: =AVERAGEIFS([Dev],[DDate],[DDate]) -> 21.43714286 | F82: =AVERAGEIFS([Succ],[DDate],[DDate]) -> 116.8628571
B83: 2005-07-15 | C83: 22.9 | D83: 115.43 | E83: =AVERAGEIFS([Dev],[DDate],[DDate]) -> 23.155 | F83: =AVERAGEIFS([Succ],[DDate],[DDate]) -> 111.95
B84: 2005-07-15 | C84: 20.96 | D84: 110.92 | E84: =AVERAGEIFS([Dev],[DDate],[DDate]) -> 23.155 | F84: =AVERAGEIFS([Succ],[DDate],[DDate]) -> 111.95
B85: 2005-07-15 | C85: 22.9 | D85: 109.53 | E85: =AVERAGEIFS([Dev],[DDate],[DDate]) -> 23.155 | F85: =AVERAGEIFS([Succ],[DDate],[DDate]) -> 111.95
B86: 2005-07-15 | C86: 25.86 | D86: 111.92 | E86: =AVERAGEIFS([Dev],[DDate],[DDate]) -> 23.155 | F86: =AVERAGEIFS([Succ],[DDate],[DDate]) -> 111.95
B87: 2005-08-01 | C87: 30.62 | D87: 113.85 | E87: =AVERAGEIFS([Dev],[DDate],[DDate]) -> 38.66166667 | F87: =AVERAGEIFS([Succ],[DDate],[DDate]) -> 110.74
B88: 2005-08-01 | C88: 35.13 | D88: 110.36 | E88: =AVERAGEIFS([Dev],[DDate],[DDate]) -> 38.66166667 | F88: =AVERAGEIFS([Succ],[DDate],[DDate]) -> 110.74
B89: 2005-08-01 | C89: 40.04 | D89: 108.47 | E89: =AVERAGEIFS([Dev],[DDate],[DDate]) -> 38.66166667 | F89: =AVERAGEIFS([Succ],[DDate],[DDate]) -> 110.74
B90: 2005-08-01 | C90: 44.93 | D90: 112.34 | E90: =AVERAGEIFS([Dev],[DDate],[DDate]) -> 38.66166667 | F90: =AVERAGEIFS([Succ],[DDate],[DDate]) -> 110.74
B91: 2005-08-01 | C91: 41.36 | D91: 109.24 | E91: =AVERAGEIFS([Dev],[DDate],[DDate]) -> 38.66166667 | F91: =AVERAGEIFS([Succ],[DDate],[DDate]) -> 110.74
B92: 2005-08-01 | C92: 39.89 | D92: 110.18 | E92: =AVERAGEIFS([Dev],[DDate],[DDate]) -> 38.66166667 | F92: =AVERAGEIFS([Succ],[DDate],[DDate]) -> 110.74
B93: 2005-08-15 | C93: 44.52 | D93: 110.61 | E93: =AVERAGEIFS([Dev],[DDate],[DDate]) -> 45.14 | F93: =AVERAGEIFS([Succ],[DDate],[DDate]) -> 110.175
B94: 2005-08-15 | C94: 45.76 | D94: 109.74 | E94: =AVERAGEIFS([Dev],[DDate],[DDate]) -> 45.14 | F94: =AVERAGEIFS([Succ],[DDate],[DDate]) -> 110.175
B95: 2005-09-01 | C95: 45.66 | D95: 114.69 | E95: =AVERAGEIFS([Dev],[DDate],[DDate]) -> 44.538 | F95: =AVERAGEIFS([Succ],[DDate],[DDate]) -> 111.686
B96: 2005-09-01 | C96: 49.09 | D96: 110.04 | E96: =AVERAGEIFS([Dev],[DDate],[DDate]) -> 44.538 | F96: =AVERAGEIFS([Succ],[DDate],[DDate]) -> 111.686
B97: 2005-09-01 | C97: 45.45 | D97: 112.77 | E97: =AVERAGEIFS([Dev],[DDate],[DDate]) -> 44.538 | F97: =AVERAGEIFS([Succ],[DDate],[DDate]) -> 111.686
B98: 2005-09-01 | C98: 43.5 | D98: 111.79 | E98: =AVERAGEIFS([Dev],[DDate],[DDate]) -> 44.538 | F98: =AVERAGEIFS([Succ],[DDate],[DDate]) -> 111.686
B99: 2005-09-01 | C99: 38.99 | D99: 109.14 | E99: =AVERAGEIFS([Dev],[DDate],[DDate]) -> 44.538 | F99: =AVERAGEIFS([Succ],[DDate],[DDate]) -> 111.686
B100: 2005-09-15 | C100: 38.21 | D100: 108.53 | E100: =AVERAGEIFS([Dev],[DDate],[DDate]) -> 38.06333333 | F100: =AVERAGEIFS([Succ],[DDate],[DDate]) -> 106.6533333
B101: 2005-09-15 | C101: 36.68 | D101: 106.85 | E101: =AVERAGEIFS([Dev],[DDate],[DDate]) -> 38.06333333 | F101: =AVERAGEIFS([Succ],[DDate],[DDate]) -> 106.6533333
B102: 2005-09-15 | C102: 39.3 | D102: 104.58 | E102: =AVERAGEIFS([Dev],[DDate],[DDate]) -> 38.06333333 | F102: =AVERAGEIFS([Succ],[DDate],[DDate]) -> 106.6533333
B103: 2005-10-01 | C103: 35.83 | D103: 107.76 | E103: =AVERAGEIFS([Dev],[DDate],[DDate]) -> 39.18 | F103: =AVERAGEIFS([Succ],[DDate],[DDate]) -> 109.4633333
B104: 2005-10-01 | C104: 38.96 | D104: 109.9 | E104: =AVERAGEIFS([Dev],[DDate],[DDate]) -> 39.18 | F104: =AVERAGEIFS([Succ],[DDate],[DDate]) -> 109.4633333
B105: 2005-10-01 | C105: 42.75 | D105: 110.73 | E105: =AVERAGEIFS([Dev],[DDate],[DDate]) -> 39.18 | F105: =AVERAGEIFS([Succ],[DDate],[DDate]) -> 109.4633333
B106: 2005-10-15 | C106: 47.19 | D106: 111.01 | E106: =AVERAGEIFS([Dev],[DDate],[DDate]) -> 47.19 | F106: =AVERAGEIFS([Succ],[DDate],[DDate]) -> 111.01
B107: 2005-11-01 | C107: 47.22 | D107: 113.48 | E107: =AVERAGEIFS([Dev],[DDate],[DDate]) -> 48.4275 | F107: =AVERAGEIFS([Succ],[DDate],[DDate]) -> 110.1925
B108: 2005-11-01 | C108: 49.96 | D108: 111.74 | E108: =AVERAGEIFS([Dev],[DDate],[DDate]) -> 48.4275 | F108: =AVERAGEIFS([Succ],[DDate],[DDate]) -> 110.1925
B109: 2005-11-01 | C109: 49.86 | D109: 108.66 | E109: =AVERAGEIFS([Dev],[DDate],[DDate]) -> 48.4275 | F109: =AVERAGEIFS([Succ],[DDate],[DDate]) -> 110.1925
B110: 2005-11-01 | C110: 46.67 | D110: 106.89 | E110: =AVERAGEIFS([Dev],[DDate],[DDate]) -> 48.4275 | F110: =AVERAGEIFS([Succ],[DDate],[DDate]) -> 110.1925
B111: 2005-11-15 | C111: 51.02 | D111: 111.39 | E111: =AVERAGEIFS([Dev],[DDate],[DDate]) -> 53 | F111: =AVERAGEIFS([Succ],[DDate],[DDate]) -> 111.555
B112: 2005-11-15 | C112: 54.98 | D112: 111.72 | E112: =AVERAGEIFS([Dev],[DDate],[DDate]) -> 53 | F112: =AVERAGEIFS([Succ],[DDate],[DDate]) -> 111.555
B113: 2005-12-01 | C113: 53.03 | D113: 111.01 | E113: =AVERAGEIFS([Dev],[DDate],[DDate]) -> 54.65 | F113: =AVERAGEIFS([Succ],[DDate],[DDate]) -> 112.65
B114: 2005-12-01 | C114: 56.27 | D114: 114.29 | E114: =AVERAGEIFS([Dev],[DDate],[DDate]) -> 54.65 | F114: =AVERAGEIFS([Succ],[DDate],[DDate]) -> 112.65
B115: 2005-12-15 | C115: 52.68 | D115: 112.17 | E115: =AVERAGEIFS([Dev],[DDate],[DDate]) -> 53.82 | F115: =AVERAGEIFS([Succ],[DDate],[DDate]) -> 107.4
B116: 2005-12-15 | C116: 52.57 | D116: 107.44 | E116: =AVERAGEIFS([Dev],[DDate],[DDate]) -> 53.82 | F116: =AVERAGEIFS([Succ],[DDate],[DDate]) -> 107.4
B117: 2005-12-15 | C117: 56.21 | D117: 102.59 | E117: =AVERAGEIFS([Dev],[DDate],[DDate]) -> 53.82 | F117: =AVERAGEIFS([Succ],[DDate],[DDate]) -> 107.4
B118: 2006-01-01 | C118: 52.99 | D118: 97.82 | E118: =AVERAGEIFS([Dev],[DDate],[DDate]) -> 52.99 | F118: =AVERAGEIFS([Succ],[DDate],[DDate]) -> 97.82
B119: 2006-01-15 | C119: 53.22 | D119: 94.08 | E119: =AVERAGEIFS([Dev],[DDate],[DDate]) -> 50.15333333 | F119: =AVERAGEIFS([Succ],[DDate],[DDate]) -> 90.91
B120: 2006-01-15 | C120: 51.06 | D120: 90.28 | E120: =AVERAGEIFS([Dev],[DDate],[DDate]) -> 50.15333333 | F120: =AVERAGEIFS([Succ],[DDate],[DDate]) -> 90.91
B121: 2006-01-15 | C121: 46.18 | D121: 88.37 | E121: =AVERAGEIFS([Dev],[DDate],[DDate]) -> 50.15333333 | F121: =AVERAGEIFS([Succ],[DDate],[DDate]) -> 90.91
B122: 2006-02-01 | C122: 44.72 | D122: 83.49 | E122: =AVERAGEIFS([Dev],[DDate],[DDate]) -> 42.72666667 | F122: =AVERAGEIFS([Succ],[DDate],[DDate]) -> 81.52333333
B123: 2006-02-01 | C123: 43.25 | D123: 78.88 | E123: =AVERAGEIFS([Dev],[DDate],[DDate]) -> 42.72666667 | F123: =AVERAGEIFS([Succ],[DDate],[DDate]) -> 81.52333333
B124: 2006-02-01 | C124: 40.21 | D124: 82.2 | E124: =AVERAGEIFS([Dev],[DDate],[DDate]) -> 42.72666667 | F124: =AVERAGEIFS([Succ],[DDate],[DDate]) -> 81.52333333
B125: 2006-02-15 | C125: 37.52 | D125: 83.79 | E125: =AVERAGEIFS([Dev],[DDate],[DDate]) -> 37.52 | F125: =AVERAGEIFS([Succ],[DDate],[DDate]) -> 83.79
B126: 2006-03-01 | C126: 36.58 | D126: 79.36 | E126: =AVERAGEIFS([Dev],[DDate],[DDate]) -> 38.40333333 | F126: =AVERAGEIFS([Succ],[DDate],[DDate]) -> 82.26
B127: 2006-03-01 | C127: 41.26 | D127: 81.91 | E127: =AVERAGEIFS([Dev],[DDate],[DDate]) -> 38.40333333 | F127: =AVERAGEIFS([Succ],[DDate],[DDate]) -> 82.26
B128: 2006-03-01 | C128: 37.37 | D128: 85.51 | E128: =AVERAGEIFS([Dev],[DDate],[DDate]) -> 38.40333333 | F128: =AVERAGEIFS([Succ],[DDate],[DDate]) -> 82.26
B129: 2006-03-15 | C129: 40.41 | D129: 86.91 | E129: =AVERAGEIFS([Dev],[DDate],[DDate]) -> 43.4175 | F129: =AVERAGEIFS([Succ],[DDate],[DDate]) -> 87.595
B130: 2006-03-15 | C130: 43.9 | D130: 86.52 | E130: =AVERAGEIFS([Dev],[DDate],[DDate]) -> 43.4175 | F130: =AVERAGEIFS([Succ],[DDate],[DDate]) -> 87.595
B131: 2006-03-15 | C131: 45.96 | D131: 87.72 | E131: =AVERAGEIFS([Dev],[DDate],[DDate]) -> 43.4175 | F131: =AVERAGEIFS([Succ],[DDate],[DDate]) -> 87.595
B132: 2006-03-15 | C132: 43.4 | D132: 89.23 | E132: =AVERAGEIFS([Dev],[DDate],[DDate]) -> 43.4175 | F132: =AVERAGEIFS([Succ],[DDate],[DDate]) -> 87.595
B133: 2006-04-01 | C133: 45.11 | D133: 85.67 | E133: =AVERAGEIFS([Dev],[DDate],[DDate]) -> 47.15333333 | F133: =AVERAGEIFS([Succ],[DDate],[DDate]) -> 84.29
B134: 2006-04-01 | C134: 48.21 | D134: 85.39 | E134: =AVERAGEIFS([Dev],[DDate],[DDate]) -> 47.15333333 | F134: =AVERAGEIFS([Succ],[DDate],[DDate]) -> 84.29
B135: 2006-04-01 | C135: 48.14 | D135: 81.81 | E135: =AVERAGEIFS([Dev],[DDate],[DDate]) -> 47.15333333 | F135: =AVERAGEIFS([Succ],[DDate],[DDate]) -> 84.29
B136: 2006-04-15 | C136: 47.72 | D136: 86.06 | E136: =AVERAGEIFS([Dev],[DDate],[DDate]) -> 49.525 | F136: =AVERAGEIFS([Succ],[DDate],[DDate]) -> 85.09
B137: 2006-04-15 | C137: 51.33 | D137: 84.12 | E137: =AVERAGEIFS([Dev],[DDate],[DDate]) -> 49.525 | F137: =AVERAGEIFS([Succ],[DDate],[DDate]) -> 85.09
B138: 2006-05-01 | C138: 51.54 | D138: 79.63 | E138: =AVERAGEIFS([Dev],[DDate],[DDate]) -> 51.54 | F138: =AVERAGEIFS([Succ],[DDate],[DDate]) -> 79.63
B139: 2006-05-15 | C139: 56.05 | D139: 82.62 | E139: =AVERAGEIFS([Dev],[DDate],[DDate]) -> 52.23 | F139: =AVERAGEIFS([Succ],[DDate],[DDate]) -> 81.42
B140: 2006-05-15 | C140: 51.73 | D140: 83.09 | E140: =AVERAGEIFS([Dev],[DDate],[DDate]) -> 52.23 | F140: =AVERAGEIFS([Succ],[DDate],[DDate]) -> 81.42
B141: 2006-05-15 | C141: 48.91 | D141: 78.55 | E141: =AVERAGEIFS([Dev],[DDate],[DDate]) -> 52.23 | F141: =AVERAGEIFS([Succ],[DDate],[DDate]) -> 81.42
B142: 2006-06-15 | C142: 46.65 | D142: 79.12 | E142: =AVERAGEIFS([Dev],[DDate],[DDate]) -> 42.715 | F142: =AVERAGEIFS([Succ],[DDate],[DDate]) -> 82.3275
B143: 2006-06-15 | C143: 43.59 | D143: 81.23 | E143: =AVERAGEIFS([Dev],[DDate],[DDate]) -> 42.715 | F143: =AVERAGEIFS([Succ],[DDate],[DDate]) -> 82.3275
B144: 2006-06-15 | C144: 42.48 | D144: 85.28 | E144: =AVERAGEIFS([Dev],[DDate],[DDate]) -> 42.715 | F144: =AVERAGEIFS([Succ],[DDate],[DDate]) -> 82.3275
B145: 2006-06-15 | C145: 38.14 | D145: 83.68 | E145: =AVERAGEIFS([Dev],[DDate],[DDate]) -> 42.715 | F145: =AVERAGEIFS([Succ],[DDate],[DDate]) -> 82.3275
B146: 2006-07-01 | C146: 39.48 | D146: 84.35 | E146: =AVERAGEIFS([Dev],[DDate],[DDate]) -> 40.96 | F146: =AVERAGEIFS([Succ],[DDate],[DDate]) -> 86.4925
B147: 2006-07-01 | C147: 40.61 | D147: 87.05 | E147: =AVERAGEIFS([Dev],[DDate],[DDate]) -> 40.96 | F147: =AVERAGEIFS([Succ],[DDate],[DDate]) -> 86.4925
B148: 2006-07-01 | C148: 42.54 | D148: 87.75 | E148: =AVERAGEIFS([Dev],[DDate],[DDate]) -> 40.96 | F148: =AVERAGEIFS([Succ],[DDate],[DDate]) -> 86.4925
B149: 2006-07-01 | C149: 41.21 | D149: 86.82 | E149: =AVERAGEIFS([Dev],[DDate],[DDate]) -> 40.96 | F149: =AVERAGEIFS([Succ],[DDate],[DDate]) -> 86.4925
B150: 2006-07-15 | C150: 37.03 | D150: 83.57 | E150: =AVERAGEIFS([Dev],[DDate],[DDate]) -> 37.03 | F150: =AVERAGEIFS([Succ],[DDate],[DDate]) -> 83.57
B151: 2006-08-01 | C151: 41.15 | D151: 78.79 | E151: =AVERAGEIFS([Dev],[DDate],[DDate]) -> 37.928 | F151: =AVERAGEIFS([Succ],[DDate],[DDate]) -> 83.01
B152: 2006-08-01 | C152: 38.74 | D152: 80.01 | E152: =AVERAGEIFS([Dev],[DDate],[DDate]) -> 37.928 | F152: =AVERAGEIFS([Succ],[DDate],[DDate]) -> 83.01
B153: 2006-08-01 | C153: 35.19 | D153: 81.23 | E153: =AVERAGEIFS([Dev],[DDate],[DDate]) -> 37.928 | F153: =AVERAGEIFS([Succ],[DDate],[DDate]) -> 83.01
B154: 2006-08-01 | C154: 37.22 | D154: 85.02 | E154: =AVERAGEIFS([Dev],[DDate],[DDate]) -> 37.928 | F154: =AVERAGEIFS([Succ],[DDate],[DDate]) -> 83.01
B155: 2006-08-01 | C155: 37.34 | D155: 90 | E155: =AVERAGEIFS([Dev],[DDate],[DDate]) -> 37.928 | F155: =AVERAGEIFS([Succ],[DDate],[DDate]) -> 83.01
B156: 2006-08-15 | C156: 39.19 | D156: 94.82 | E156: =AVERAGEIFS([Dev],[DDate],[DDate]) -> 37.67333333 | F156: =AVERAGEIFS([Succ],[DDate],[DDate]) -> 94.26333333
B157: 2006-08-15 | C157: 36.96 | D157: 91.84 | E157: =AVERAGEIFS([Dev],[DDate],[DDate]) -> 37.67333333 | F157: =AVERAGEIFS([Succ],[DDate],[DDate]) -> 94.26333333
B158: 2006-08-15 | C158: 36.87 | D158: 96.13 | E158: =AVERAGEIFS([Dev],[DDate],[DDate]) -> 37.67333333 | F158: =AVERAGEIFS([Succ],[DDate],[DDate]) -> 94.26333333
B159: 2006-09-01 | C159: 37.37 | D159: 100.21 | E159: =AVERAGEIFS([Dev],[DDate],[DDate]) -> 36.84 | F159: =AVERAGEIFS([Succ],[DDate],[DDate]) -> 102.3766667
B160: 2006-09-01 | C160: 36.94 | D160: 102.43 | E160: =AVERAGEIFS([Dev],[DDate],[DDate]) -> 36.84 | F160: =AVERAGEIFS([Succ],[DDate],[DDate]) -> 102.3766667
B161: 2006-09-01 | C161: 36.21 | D161: 104.49 | E161: =AVERAGEIFS([Dev],[DDate],[DDate]) -> 36.84 | F161: =AVERAGEIFS([Succ],[DDate],[DDate]) -> 102.3766667
B162: 2006-09-15 | C162: 31.68 | D162: 99.89 | E162: =AVERAGEIFS([Dev],[DDate],[DDate]) -> 31.68 | F162: =AVERAGEIFS([Succ],[DDate],[DDate]) -> 99.89
B163: 2006-10-01 | C163: 28.36 | D163: 95.14 | E163: =AVERAGEIFS([Dev],[DDate],[DDate]) -> 30.625 | F163: =AVERAGEIFS([Succ],[DDate],[DDate]) -> 93.08
B164: 2006-10-01 | C164: 32.89 | D164: 91.02 | E164: =AVERAGEIFS([Dev],[DDate],[DDate]) -> 30.625 | F164: =AVERAGEIFS([Succ],[DDate],[DDate]) -> 93.08
B165: 2006-10-15 | C165: 32.87 | D165: 86.15 | E165: =AVERAGEIFS([Dev],[DDate],[DDate]) -> 33.32 | F165: =AVERAGEIFS([Succ],[DDate],[DDate]) -> 90.8025
B166: 2006-10-15 | C166: 33.01 | D166: 90.46 | E166: =AVERAGEIFS([Dev],[DDate],[DDate]) -> 33.32 | F166: =AVERAGEIFS([Succ],[DDate],[DDate]) -> 90.8025
B167: 2006-10-15 | C167: 32.12 | D167: 90.94 | E167: =AVERAGEIFS([Dev],[DDate],[DDate]) -> 33.32 | F167: =AVERAGEIFS([Succ],[DDate],[DDate]) -> 90.8025
B168: 2006-10-15 | C168: 35.28 | D168: 95.66 | E168: =AVERAGEIFS([Dev],[DDate],[DDate]) -> 33.32 | F168: =AVERAGEIFS([Succ],[DDate],[DDate]) -> 90.8025
B169: 2006-11-01 | C169: 37.76 | D169: 93.9 | E169: =AVERAGEIFS([Dev],[DDate],[DDate]) -> 37.01 | F169: =AVERAGEIFS([Succ],[DDate],[DDate]) -> 94.55
B170: 2006-11-01 | C170: 36.26 | D170: 95.2 | E170: =AVERAGEIFS([Dev],[DDate],[DDate]) -> 37.01 | F170: =AVERAGEIFS([Succ],[DDate],[DDate]) -> 94.55
B171: 2006-11-15 | C171: 39.48 | D171: 90.52 | E171: =AVERAGEIFS([Dev],[DDate],[DDate]) -> 40.435 | F171: =AVERAGEIFS([Succ],[DDate],[DDate]) -> 90.37
B172: 2006-11-15 | C172: 41.39 | D172: 90.22 | E172: =AVERAGEIFS([Dev],[DDate],[DDate]) -> 40.435 | F172: =AVERAGEIFS([Succ],[DDate],[DDate]) -> 90.37
B173: =ROUND((MAX([DDate])-MIN([DDate]))/ROWS(Table1[]),0) -> 5
